bitfinex/quotes_BTCUSD_20251009
["timestamp","ask_amount","ask_price","bid_price","bid_amount"]
[1760037385481,1.86549594,120950.0,120940.0,0.0016359]
[1760037386289,1.77945594,120950.0,120940.0,0.0016359]
[1760037386486,1.86545594,120950.0,120940.0,0.0016359]
[1760037386845,1.63001594,120950.0,120940.0,0.0016359]
[1760037387064,1.86545594,120950.0,120940.0,0.0016359]
[1760037387249,1.63001594,120950.0,120940.0,0.0016359]
[1760037387462,1.43481644,120950.0,120940.0,0.0016359]
[1760037387693,1.86545594,120950.0,120940.0,0.0016359]
[1760037388526,1.42055594,120950.0,120940.0,0.0016359]
[1760037389967,1.18511594,120950.0,120940.0,0.0016359]
[1760037390225,1.42047594,120950.0,120940.0,0.0016359]
[1760037390985,1.08047594,120950.0,120940.0,0.0016359]
[1760037391611,0.75911594,120950.0,120940.0,0.0016359]
[1760037391816,1.08047594,120950.0,120940.0,0.0016359]
[1760037392067,0.67911914,120950.0,120940.0,0.0016359]
[1760037392272,1.00043914,120950.0,120940.0,0.0016359]
[1760037393210,1.10511914,120950.0,120940.0,0.0016359]
[1760037393427,1.36527278,120950.0,120940.0,0.0016359]
[1760037395153,1.5933329,120950.0,120940.0,0.0016359]
[1760037395371,0.93603811,120920.0,120910.0,0.1]
[1760037395584,0.90992409,120920.0,120910.0,0.1]
[1760037396482,1.01924359,120920.0,120910.0,0.1]
[1760037396717,1.34056359,120920.0,120910.0,0.1]
[1760037396941,1.01924359,120920.0,120910.0,0.1]
[1760037397172,1.42056039,120920.0,120910.0,0.1]
[1760037397642,1.42052039,120920.0,120910.0,0.1]
[1760037400973,1.42052039,120920.0,120910.0,0.10155292]
[1760037401590,1.18524039,120920.0,120910.0,0.10155292]
[1760037401829,1.42048039,120920.0,120910.0,0.10155292]
[1760037401988,1.18524039,120920.0,120910.0,0.10155292]
[1760037402180,1.42044039,120920.0,120910.0,0.10155292]
[1760037402384,1.09924039,120920.0,120910.0,0.10155292]
[1760037402600,1.42044039,120920.0,120910.0,0.10155292]
[1760037403581,1.34044359,120920.0,120910.0,0.10155292]
[1760037404399,1.34040359,120920.0,120910.0,0.10155292]
[1760037405655,1.51659335,120920.0,120910.0,0.10155292]
[1760037406941,1.21317872,120920.0,120910.0,0.10155292]
[1760037407117,0.97801872,120920.0,120910.0,0.10155292]
[1760037407321,1.29317552,120920.0,120910.0,0.10155292]
[1760037407518,1.15916358,120920.0,120910.0,0.10155292]
[1760037407715,1.39428358,120920.0,120910.0,0.10155292]
[1760037409234,1.07316358,120920.0,120910.0,0.10155292]
[1760037409554,1.39428358,120920.0,120910.0,0.10155292]
[1760037410170,1.07316358,120920.0,120910.0,0.10155292]
[1760037410366,1.39424358,120920.0,120910.0,0.10155292]
[1760037410805,1.07316358,120920.0,120910.0,0.10155292]
[1760037411031,1.39420358,120920.0,120910.0,0.10155292]
[1760037412396,1.31420678,120920.0,120910.0,0.10155292]
[1760037418390,0.58860409,120920.0,120910.0,0.10155292]
[1760037418616,8.342e-05,120920.0,120910.0,0.34711521]
[1760037419058,0.23500342,120920.0,120910.0,0.34711521]
[1760037419500,8.342e-05,120920.0,120910.0,0.34711521]
[1760037419710,0.23500342,120920.0,120910.0,0.34711521]
[1760037419926,8.342e-05,120920.0,120910.0,0.34711521]
[1760037420136,0.23500342,120920.0,120910.0,0.34711521]
[1760037423431,8.342e-05,120920.0,120910.0,0.34711521]
[1760037423710,0.15692342,120920.0,120910.0,0.34711521]
[1760037424335,8.342e-05,120920.0,120910.0,0.43023727]
[1760037424544,8.342e-05,120920.0,120910.0,0.46038917]
[1760037424964,8.342e-05,120920.0,120910.0,0.69526917]
[1760037425620,8.342e-05,120920.0,120910.0,0.46038917]
[1760037425799,8.342e-05,120920.0,120910.0,1.12122917]
[1760037427101,8.342e-05,120920.0,120910.0,1.18256165]
[1760037427276,8.342e-05,120920.0,120910.0,1.18356165]
[1760037428238,8.342e-05,120920.0,120910.0,1.18352165]
[1760037430923,8.342e-05,120920.0,120910.0,1.18344165]
[1760037432923,8.342e-05,120920.0,120910.0,1.18340165]
[1760037433240,8.342e-05,120920.0,120910.0,0.86272165]
[1760037433647,8.342e-05,120920.0,120910.0,1.09740165]
[1760037433846,8.342e-05,120920.0,120910.0,1.18340165]
[1760037435725,8.342e-05,120920.0,120910.0,0.86272165]
[1760037435932,8.342e-05,120920.0,120910.0,1.18340165]
[1760037436483,8.342e-05,120920.0,120910.0,1.09740165]
[1760037436698,8.342e-05,120920.0,120910.0,1.18340165]
[1760037436919,8.342e-05,120920.0,120910.0,0.94872165]
[1760037437133,8.342e-05,120920.0,120910.0,0.60872165]
[1760037437342,8.342e-05,120920.0,120910.0,0.84340165]
[1760037437559,8.342e-05,120920.0,120910.0,0.75740165]
[1760037437772,8.342e-05,120920.0,120910.0,0.52272165]
[1760037437997,8.342e-05,120920.0,120910.0,0.75740165]
[1760037438382,0.40464611,120920.0,120910.0,0.14498292]
[1760037438604,0.62704796,120920.0,120910.0,0.10255292]
[1760037438832,0.57004472,120920.0,120910.0,0.10255292]
[1760037439060,0.57004472,120920.0,120910.0,0.10155292]
[1760037439271,0.91004472,120920.0,120910.0,0.10255292]
[1760037439922,0.91004472,120920.0,120910.0,0.10155292]
[1760037440164,0.91004472,120920.0,120910.0,0.26696521]
[1760037440165,0.50548203,120920.0,120910.0,0.26696521]
[1760037440402,0.74016203,120920.0,120910.0,0.26696521]
[1760037440836,0.50548203,120920.0,120910.0,0.26696521]
[1760037441045,0.74016203,120920.0,120910.0,0.26696521]
[1760037442469,0.50548203,120920.0,120910.0,0.26696521]
[1760037442669,0.74016203,120920.0,120910.0,0.30911521]
[1760037443687,0.34008342,120920.0,120910.0,0.30911521]
[1760037443883,0.74016203,120920.0,120910.0,0.30911521]
[1760037445318,0.57480342,120920.0,120910.0,0.30911521]
[1760037447377,0.74020203,120920.0,120910.0,0.30911521]
[1760037447612,0.57480342,120920.0,120910.0,0.30911521]
[1760037448249,0.57480342,120920.0,120910.0,0.28525521]
[1760037448663,0.57480342,120920.0,120910.0,0.30911521]
[1760037450124,0.57480342,120920.0,120910.0,0.34644521]
[1760037450125,8.342e-05,120920.0,120910.0,0.34644521]
[1760037451082,8.342e-05,120920.0,120910.0,0.58116521]
[1760037451701,8.342e-05,120920.0,120910.0,0.34644521]
[1760037451893,8.342e-05,120920.0,120910.0,0.58116521]
[1760037453527,8.342e-05,120920.0,120910.0,0.34644521]
[1760037453852,8.342e-05,120920.0,120910.0,0.58116521]
[1760037454696,8.342e-05,120920.0,120910.0,0.34644521]
[1760037454888,8.342e-05,120920.0,120910.0,0.58116521]
[1760037455859,8.342e-05,120920.0,120910.0,0.34644521]
[1760037456008,8.342e-05,120920.0,120910.0,0.58116521]
[1760037456630,8.342e-05,120920.0,120910.0,0.34644521]
[1760037456832,8.342e-05,120920.0,120910.0,0.54383521]
[1760037457842,8.342e-05,120920.0,120910.0,0.30911521]
[1760037458069,8.342e-05,120920.0,120910.0,0.57831521]
[1760037462824,1.62069255,120940.0,120930.0,0.16538493]
[1760037463863,1.38697255,120940.0,120930.0,0.16538493]
[1760037464072,0.16538493,120930.0,120910.0,0.2919729]
[1760037464277,0.16538493,120930.0,120920.0,0.16539861]
[1760037464699,0.56994762,120930.0,120920.0,0.16539861]
[1760037465659,0.80466762,120930.0,120920.0,0.16539861]
[1760037466506,0.88466442,120930.0,120920.0,0.16539861]
[1760037466710,0.80466762,120930.0,120920.0,0.16539861]
[1760037468112,0.40010493,120930.0,120920.0,0.16539861]
[1760037468270,0.80466762,120930.0,120920.0,0.16539861]
[1760037468733,0.50539861,120920.0,120910.0,0.1]
[1760037468947,1.39764605,120920.0,120910.0,0.1]
[1760037469168,1.39764605,120920.0,120910.0,0.10155292]
[1760037469169,1.79832285,120920.0,120910.0,0.10155292]
[1760037469377,1.47764285,120920.0,120910.0,0.10155292]
[1760037469591,1.5409587,120920.0,120910.0,0.10155292]
[1760037469802,0.6133612,120920.0,120910.0,0.10155292]
[1760037470238,0.76491914,120920.0,120910.0,0.14416292]
[1760037470451,0.53023914,120920.0,120910.0,0.14416292]
[1760037470685,0.76491914,120920.0,120910.0,0.14416292]
[1760037471293,0.76495914,120920.0,120910.0,0.14416292]
[1760037471713,0.53023914,120920.0,120910.0,0.14416292]
[1760037471911,0.76495914,120920.0,120910.0,0.14416292]
[1760037472118,0.53023914,120920.0,120910.0,0.14416292]
[1760037472279,0.57472,120920.0,120910.0,0.34478521]
[1760037472483,0.74011861,120920.0,120910.0,0.34478521]
[1760037472693,0.50539861,120920.0,120910.0,0.34478521]
[1760037472896,0.74011861,120920.0,120910.0,0.34478521]
[1760037473100,0.34,120920.0,120910.0,0.34478521]
[1760037473309,0.74011861,120920.0,120910.0,0.34478521]
[1760037473513,0.34,120920.0,120910.0,0.34478521]
[1760037474075,0.50538493,120930.0,120920.0,0.16539861]
[1760037474438,0.16535824,120950.0,120930.0,0.16537559]
[1760037474631,0.16535824,120950.0,120940.0,0.16537125]
[1760037474632,0.3344803,120950.0,120940.0,0.16537125]
[1760037474766,0.5692003,120950.0,120940.0,0.18974125]
[1760037474967,0.59403199,120950.0,120940.0,0.18974125]
[1760037475196,0.47845319,120960.0,120940.0,0.18974125]
[1760037475197,0.00138219,120960.0,120950.0,0.16535758]
[1760037475410,0.0263621,120960.0,120950.0,0.24317758]
[1760037475856,0.0015337,120960.0,120950.0,0.24317758]
[1760037477008,0.0015337,120960.0,120950.0,0.47809758]
[1760037477419,0.0015337,120960.0,120950.0,0.24317758]
[1760037477615,0.0015337,120960.0,120950.0,0.47805758]
[1760037477820,0.0015337,120960.0,120950.0,0.24317758]
[1760037478015,0.0015337,120960.0,120950.0,0.47805758]
[1760037481684,0.0015337,120960.0,120950.0,0.24317758]
[1760037481891,0.0015337,120960.0,120950.0,0.47801758]
[1760037482818,0.0015337,120960.0,120950.0,0.35645154]
[1760037483060,0.0015337,120960.0,120950.0,0.59125154]
[1760037484458,0.0015337,120960.0,120950.0,0.35645154]
[1760037484695,0.0015337,120960.0,120950.0,0.59125154]
[1760037485631,0.0015337,120960.0,120950.0,0.93125154]
[1760037486070,0.0015337,120960.0,120950.0,0.69645154]
[1760037486329,0.0015337,120960.0,120950.0,1.01721154]
[1760037486559,0.0015337,120960.0,120950.0,1.02152502]
[1760037486759,0.0015337,120960.0,120950.0,0.70076502]
[1760037486981,0.0015337,120960.0,120950.0,1.02152502]
[1760037487909,0.0015337,120960.0,120950.0,1.02148502]
[1760037489315,1e-08,120960.0,120950.0,0.78672502]
[1760037489535,1e-08,120960.0,120950.0,1.12148501]
[1760037490210,1e-08,120960.0,120950.0,1.03548501]
[1760037490417,1e-08,120960.0,120950.0,1.46636501]
[1760037490628,1e-08,120960.0,120950.0,0.80176501]
[1760037490835,1e-08,120960.0,120950.0,1.46636501]
[1760037491018,1e-08,120960.0,120950.0,1.14568501]
[1760037491219,1e-08,120960.0,120950.0,1.46640501]
[1760037492724,1e-08,120960.0,120950.0,1.23164501]
[1760037492896,1e-08,120960.0,120950.0,1.46636501]
[1760037493261,1e-08,120960.0,120950.0,1.49117967]
[1760037493464,1e-08,120960.0,120950.0,1.49109967]
[1760037495428,1e-08,120960.0,120950.0,1.49105967]
[1760037496390,1e-08,120960.0,120950.0,1.25641967]
[1760037496596,1e-08,120960.0,120950.0,1.49101967]
[1760037497772,1e-08,120960.0,120950.0,1.25641967]
[1760037497985,1e-08,120960.0,120950.0,1.25637967]
[1760037498190,1e-08,120960.0,120950.0,1.49097967]
[1760037498424,1e-08,120960.0,120950.0,0.82657967]
[1760037498627,1e-08,120960.0,120950.0,1.49097967]
[1760037504243,1e-08,120960.0,120950.0,0.82657967]
[1760037504458,1e-08,120960.0,120950.0,1.49085967]
[1760037504659,1e-08,120960.0,120950.0,0.82657967]
[1760037504886,1e-08,120960.0,120950.0,1.04705968]
[1760037505541,1e-08,120960.0,120950.0,0.72657968]
[1760037505745,1e-08,120960.0,120950.0,1.04705968]
[1760037506465,1e-08,120960.0,120950.0,0.72657968]
[1760037506701,1e-08,120960.0,120950.0,1.04705968]
[1760037513315,4.61297425,121000.0,120990.0,0.16530291]
[1760037513527,4.61309952,121000.0,120990.0,0.47317291]
[1760037513747,4.62082764,121000.0,120990.0,0.47317291]
[1760037513950,4.62289643,121000.0,120990.0,0.47317291]
[1760037514607,4.62289643,121000.0,120990.0,0.23861291]
[1760037514843,4.62289643,121000.0,120990.0,0.47317291]
[1760037515272,4.62289842,121000.0,120990.0,0.47317291]
[1760037518678,4.62289842,121000.0,120990.0,0.43769291]
[1760037518896,4.62289842,121000.0,120990.0,0.47317291]
[1760037519109,0.16530291,120990.0,120980.0,0.24315826]
[1760037519322,5.08184752,121000.0,120990.0,0.16530291]
[1760037519526,4.63631662,121000.0,120990.0,0.20313291]
[1760037519737,4.63631662,121000.0,120990.0,0.23861291]
[1760037519941,4.93977537,121000.0,120990.0,0.20313291]
[1760037520387,4.62083855,121000.0,120990.0,0.23861291]
[1760037523971,4.62083855,121000.0,120990.0,0.32173497]
[1760037524193,4.62083855,121000.0,120990.0,0.55629497]
[1760037524419,4.62083855,121000.0,120990.0,0.58644687]
[1760037524647,4.62083855,121000.0,120990.0,0.67236687]
[1760037524919,4.62290587,121000.0,120990.0,0.67236687]
[1760037525288,4.61516831,121000.0,120990.0,0.43780687]
[1760037525507,4.61516831,121000.0,120990.0,0.67236687]
[1760037525954,4.61516831,121000.0,120990.0,0.35188687]
[1760037526398,4.61516831,121000.0,120990.0,0.67236687]
[1760037528352,4.61516831,121000.0,120990.0,0.66836687]
[1760037529001,4.61516831,121000.0,120990.0,0.66832687]
[1760037529223,4.61516831,121000.0,120990.0,0.68189735]
[1760037531306,4.61516831,121000.0,120990.0,0.36145735]
[1760037531512,4.61516831,121000.0,120990.0,0.68189735]
[1760037534385,4.61516831,121000.0,120990.0,0.36145735]
[1760037534595,4.61516831,121000.0,120990.0,0.68189735]
[1760037535866,4.61516831,121000.0,120990.0,0.36145735]
[1760037536028,4.61516831,121000.0,120990.0,0.68189735]
[1760037538439,4.61516831,121000.0,120990.0,0.36145735]
[1760037538642,4.61516831,121000.0,120990.0,0.68189735]
[1760037539061,4.61516831,121000.0,120990.0,0.31773497]
[1760037539281,4.61516831,121000.0,120990.0,0.55225497]
[1760037540323,4.61516831,121000.0,120990.0,0.56595638]
[1760037540893,4.61516831,121000.0,120990.0,0.33143638]
[1760037541079,4.61516831,121000.0,120990.0,0.56591638]
[1760037541984,4.61516831,121000.0,120990.0,0.33143638]
[1760037542209,4.61516831,121000.0,120990.0,0.56591638]
[1760037544447,4.61516831,121000.0,120990.0,0.33143638]
[1760037544655,4.61516831,121000.0,120990.0,0.56591638]
[1760037546079,4.61516831,121000.0,120990.0,0.31773497]
[1760037546390,4.61516831,121000.0,120990.0,0.55221497]
[1760037546601,4.61516831,121000.0,120990.0,0.31773497]
[1760037546835,4.61516831,121000.0,120990.0,0.55221497]
[1760037549655,4.61516831,121000.0,120990.0,0.65221497]
[1760037550599,4.61516831,121000.0,120990.0,0.41773497]
[1760037550818,4.61516831,121000.0,120990.0,0.68236687]
[1760037560685,4.61516831,121000.0,120990.0,0.44788687]
[1760037561093,4.61516831,121000.0,120990.0,0.41773497]
[1760037561235,4.61516831,121000.0,120990.0,0.65221497]
[1760037561420,4.78045756,121000.0,120990.0,0.65221497]
[1760037561634,4.84964831,121000.0,120990.0,0.53361291]
[1760037562682,4.84964831,121000.0,120990.0,0.1]
[1760037562683,5.18419389,121000.0,120990.0,0.1]
[1760037562900,4.86045436,121000.0,120990.0,0.26530291]
[1760037563109,5.09493436,121000.0,120990.0,0.26530291]
[1760037563832,4.61516831,121000.0,120990.0,0.30411291]
[1760037564034,4.84964831,121000.0,120990.0,0.30411291]
[1760037564605,4.61516831,121000.0,120990.0,0.30411291]
[1760037564826,5.01493756,121000.0,120990.0,0.28688291]
[1760037565630,5.01493756,121000.0,120990.0,0.26530291]
[1760037567345,4.78045756,121000.0,120990.0,0.26530291]
[1760037567698,5.01493756,121000.0,120990.0,0.26530291]
[1760037568503,4.78045756,121000.0,120990.0,0.26530291]
[1760037568709,5.01493756,121000.0,120990.0,0.26530291]
[1760037569810,5.0857596,121000.0,120990.0,0.26530291]
[1760037570873,5.25401593,121000.0,120990.0,0.26530291]
[1760037571043,5.48849593,121000.0,120990.0,0.26530291]
[1760037571250,5.25501593,121000.0,120990.0,0.1]
[1760037571455,5.48949593,121000.0,120990.0,0.1]
[1760037571741,5.82949593,121000.0,120990.0,0.1]
[1760037571978,5.59501593,121000.0,120990.0,0.1]
[1760037572181,5.91178974,121000.0,120990.0,0.1]
[1760037572308,5.93661037,121000.0,120990.0,0.1]
[1760037572712,5.63230833,121000.0,120990.0,0.1]
[1760037573273,5.86678833,121000.0,120990.0,0.1]
[1760037574701,5.64775086,121000.0,120990.0,0.1]
[1760037574860,5.88223086,121000.0,120990.0,0.1]
[1760037575286,5.88223086,121000.0,120990.0,0.26530291]
[1760037575709,5.88222818,121000.0,120990.0,0.26530291]
[1760037576481,5.64774818,121000.0,120990.0,0.26530291]
[1760037576695,5.88222818,121000.0,120990.0,0.1]
[1760037577950,5.64774818,121000.0,120990.0,0.1]
[1760037578155,5.64774818,121000.0,120990.0,0.26530291]
[1760037578556,5.88222818,121000.0,120990.0,0.26530291]
[1760037578966,5.47849185,121000.0,120990.0,0.26530291]
[1760037579173,5.64774818,121000.0,120990.0,0.26530291]
[1760037579398,5.88222818,121000.0,120990.0,0.26530291]
[1760037579815,5.48245893,121000.0,120990.0,0.26530291]
[1760037580023,5.71693893,121000.0,120990.0,0.26530291]
[1760037580663,5.48245017,121000.0,120990.0,0.26530291]
[1760037580886,5.71693017,121000.0,120990.0,0.26530291]
[1760037581273,5.48245017,121000.0,120990.0,0.26530291]
[1760037581693,5.71693017,121000.0,120990.0,0.26530291]
[1760037582111,5.48245017,121000.0,120990.0,0.26530291]
[1760037582275,5.71693017,121000.0,120990.0,0.26530291]
[1760037583647,5.48245017,121000.0,120990.0,0.26530291]
[1760037583877,5.71693017,121000.0,120990.0,0.26530291]
[1760037584424,5.48245017,121000.0,120990.0,0.26530291]
[1760037584630,5.71693017,121000.0,120990.0,0.26530291]
[1760037585892,5.48245017,121000.0,120990.0,0.26530291]
[1760037586096,5.71693017,121000.0,120990.0,0.26530291]
[1760037586454,5.48245017,121000.0,120990.0,0.26530291]
[1760037586649,5.71693017,121000.0,120990.0,0.26530291]
[1760037587055,5.7169406,121000.0,120990.0,0.26530291]
[1760037588626,5.07872427,121000.0,120990.0,0.26530291]
[1760037589021,5.31321272,121000.0,120990.0,0.26530291]
[1760037589399,5.07873821,121000.0,120990.0,0.26530291]
[1760037589608,5.06328275,121000.0,120990.0,0.26530291]
[1760037589810,5.07873821,121000.0,120990.0,0.26530291]
[1760037590029,5.31321821,121000.0,120990.0,0.26530291]
[1760037590275,5.75811821,121000.0,120990.0,0.26530291]
[1760037590476,5.75812629,121000.0,120990.0,0.26530291]
[1760037591154,5.52364629,121000.0,120990.0,0.26530291]
[1760037591465,5.75812629,121000.0,120990.0,0.26530291]
[1760037593040,6.16186262,121000.0,120990.0,0.26530291]
[1760037593477,5.92738262,121000.0,120990.0,0.26530291]
[1760037593660,6.06110429,121000.0,120990.0,0.26530291]
[1760037594926,5.82662429,121000.0,120990.0,0.26530291]
[1760037595126,6.06110429,121000.0,120990.0,0.26530291]
[1760037596960,5.82662429,121000.0,120990.0,0.26530291]
[1760037597150,6.06110429,121000.0,120990.0,0.26530291]
[1760037597569,5.82662429,121000.0,120990.0,0.26530291]
[1760037597770,6.06110429,121000.0,120990.0,0.26530291]
[1760037598828,5.82662429,121000.0,120990.0,0.26530291]
[1760037599045,6.06110429,121000.0,120990.0,0.26530291]
[1760037600288,5.82662429,121000.0,120990.0,0.26530291]
[1760037600499,6.06110429,121000.0,120990.0,0.26530291]
[1760037600701,5.82662429,121000.0,120990.0,0.26530291]
[1760037600903,5.75812629,121000.0,120990.0,0.26530291]
[1760037601129,5.90662109,121000.0,120990.0,0.1]
[1760037601380,5.10052423,121000.0,120990.0,0.28708291]
[1760037601582,4.6308036,121000.0,120990.0,0.33898291]
[1760037601783,4.86531215,121000.0,120990.0,0.33898291]
[1760037601978,4.63083215,121000.0,120990.0,0.42210497]
[1760037602181,4.61434006,121000.0,120990.0,0.42210497]
[1760037603470,4.61434006,121000.0,120990.0,0.68673687]
[1760037603670,4.61434006,121000.0,120990.0,0.68669687]
[1760037604270,4.61434006,121000.0,120990.0,0.45225687]
[1760037604470,4.61434006,121000.0,120990.0,0.68669687]
[1760037604721,4.61434006,121000.0,120990.0,0.77265687]
[1760037605706,4.61434006,121000.0,120990.0,0.45225687]
[1760037605921,4.61434006,121000.0,120990.0,0.68669687]
[1760037609349,4.61434006,121000.0,120990.0,0.45225687]
[1760037609552,4.61434006,121000.0,120990.0,0.68669687]
[1760037609750,4.4419432,121000.0,120990.0,0.68669687]
[1760037611344,4.4419432,121000.0,120990.0,0.71150913]
[1760037612213,4.4419432,121000.0,120990.0,0.47706913]
[1760037612707,4.4419432,121000.0,120990.0,0.71146913]
[1760037613087,4.4419432,121000.0,120990.0,0.47706913]
[1760037613328,4.4419432,121000.0,120990.0,0.71146913]
[1760037613955,4.4419432,121000.0,120990.0,0.47706913]
[1760037614165,4.4419432,121000.0,120990.0,0.71246913]
[1760037615043,4.4419432,121000.0,120990.0,0.71146913]
[1760037615315,3.80513498,121000.0,120990.0,1.05146913]
[1760037615540,3.67626573,121000.0,120990.0,1.05246913]
[1760037615722,3.65148054,121000.0,120990.0,1.05246913]
[1760037615922,3.62669535,121000.0,120990.0,1.05246913]
[1760037616136,3.1500484,121000.0,120990.0,1.05246913]
[1760037616347,3.00690166,121000.0,120990.0,1.05246913]
[1760037616765,3.00690166,121000.0,120990.0,0.81806913]
[1760037616982,3.00690166,121000.0,120990.0,1.13838913]
[1760037617419,2.48751218,121000.0,120990.0,1.13838913]
[1760037618260,1.9262782,121000.0,120990.0,1.13838913]
[1760037618470,1.880448,121000.0,120990.0,1.13838913]
[1760037618672,1.66780415,121000.0,120990.0,1.13838913]
[1760037618879,1.40501254,121000.0,120990.0,1.13838913]
[1760037619120,1.2211291,121000.0,120990.0,1.13838913]
[1760037619323,1.09277514,121000.0,120990.0,1.13838913]
[1760037619731,0.67457378,121000.0,120990.0,1.13838913]
[1760037623101,0.67357378,121000.0,120990.0,1.13838913]
[1760037627644,0.29962994,121000.0,120990.0,1.13838913]
[1760037628304,0.0002,121020.0,121010.0,0.53542749]
[1760037628512,0.00025047,121020.0,121010.0,0.63536955]
[1760037628714,0.00025047,121020.0,121010.0,1.00987955]
[1760037628895,0.00025047,121020.0,121010.0,1.01318694]
[1760037629397,0.00025047,121020.0,121010.0,1.01418694]
[1760037629821,0.00025047,121020.0,121010.0,0.69294694]
[1760037629963,0.00025047,121020.0,121010.0,0.92726694]
[1760037630365,0.00025047,121020.0,121010.0,1.01318694]
[1760037630603,0.00025047,121020.0,121010.0,1.01418694]
[1760037632483,0.00487261,121050.0,121040.0,0.16523463]
[1760037632691,0.02036231,121050.0,121040.0,0.34357463]
[1760037632898,0.02036231,121050.0,121040.0,0.42426463]
[1760037634763,0.00492309,121050.0,121040.0,0.42426463]
[1760037635180,0.00750759,121050.0,121040.0,0.42426463]
[1760037635385,0.03066616,121050.0,121040.0,0.42426463]
[1760037636263,0.03066616,121050.0,121040.0,0.48759432]
[1760037637514,0.03066616,121050.0,121040.0,0.48694413]
[1760037637719,0.03066616,121050.0,121040.0,0.32542413]
[1760037637930,0.03066616,121050.0,121040.0,0.55970413]
[1760037638137,0.03066616,121050.0,121040.0,0.32542413]
[1760037638347,0.03066616,121050.0,121040.0,0.55970413]
[1760037638959,0.03066616,121050.0,121040.0,0.32542413]
[1760037639161,0.03066616,121050.0,121040.0,0.55970413]
[1760037640727,0.03066871,121050.0,121040.0,0.55970413]
[1760037644722,0.03656871,121050.0,121040.0,0.51217413]
[1760037645127,0.03656871,121050.0,121040.0,0.55970413]
[1760037645366,0.03066871,121050.0,121040.0,0.55970413]
[1760037647010,0.03066871,121050.0,121040.0,0.32542413]
[1760037647185,0.03066871,121050.0,121040.0,0.55966413]
[1760037647520,0.01522966,121050.0,121040.0,0.32542413]
[1760037647767,0.01522966,121050.0,121040.0,0.55966413]
[1760037648462,0.01970966,121050.0,121040.0,0.51213413]
[1760037649136,0.01970966,121050.0,121040.0,0.55782413]
[1760037650076,0.01971658,121050.0,121040.0,0.55782413]
[1760037650811,0.50617355,121050.0,121020.0,0.01682]
[1760037651026,0.0028,121040.0,121020.0,0.18208012]
[1760037651234,0.00448,121030.0,121020.0,0.41608012]
[1760037651454,0.00448,121030.0,121020.0,0.44938012]
[1760037651910,0.00448,121030.0,121020.0,0.41608012]
[1760037652134,0.00448,121030.0,121020.0,0.21538194]
[1760037652392,0.00448,121030.0,121020.0,0.44962194]
[1760037655137,0.00448,121030.0,121020.0,0.51032241]
[1760037656367,0.00603096,121030.0,121020.0,0.51032241]
[1760037658227,0.00155096,121030.0,121020.0,0.51032241]
[1760037658373,0.00155096,121030.0,121020.0,0.55601241]
[1760037658581,0.00603096,121030.0,121020.0,0.51032241]
[1760037659343,0.01786572,121030.0,121020.0,0.51032241]
[1760037659587,0.00603096,121030.0,121020.0,0.51032241]
[1760037660367,0.00155096,121030.0,121020.0,0.55601241]
[1760037660996,0.00155096,121030.0,121020.0,0.40489447]
[1760037661204,0.00155096,121030.0,121020.0,0.63913447]
[1760037670173,0.00155096,121030.0,121020.0,0.40489447]
[1760037670377,0.00155096,121030.0,121020.0,0.63913447]
[1760037670772,0.00155096,121030.0,121020.0,0.40489447]
[1760037670994,0.00155096,121030.0,121020.0,0.63913447]
[1760037671608,0.00155096,121030.0,121020.0,0.40489447]
[1760037671816,0.00155096,121030.0,121020.0,0.63913447]
[1760037672944,0.00478096,121030.0,121020.0,0.27608241]
[1760037673157,0.00478096,121030.0,121020.0,0.51032241]
[1760037673629,0.00478096,121030.0,121020.0,0.55860241]
[1760037674041,0.00478096,121030.0,121020.0,0.32436241]
[1760037674256,0.00478096,121030.0,121020.0,0.55860241]
[1760037675482,0.00478096,121030.0,121020.0,0.51032241]
[1760037676162,0.00155096,121030.0,121020.0,0.55860241]
[1760037678599,0.00155096,121030.0,121020.0,0.32436241]
[1760037678798,0.00155096,121030.0,121020.0,0.55860241]
[1760037679430,0.00155096,121030.0,121020.0,0.55856241]
[1760037680464,0.00155096,121030.0,121020.0,0.32436241]
[1760037680649,0.00155096,121030.0,121020.0,0.55860241]
[1760037681497,0.00155096,121030.0,121020.0,0.55856241]
[1760037693654,0.00155096,121030.0,121020.0,0.40748447]
[1760037693869,0.00155096,121030.0,121020.0,0.64168447]
[1760037694066,0.00155096,121030.0,121020.0,0.66649295]
[1760037696480,0.00155096,121030.0,121020.0,0.43229295]
[1760037696701,0.00155096,121030.0,121020.0,0.66649295]
[1760037700849,0.00214096,121030.0,121020.0,0.27608241]
[1760037701594,0.00155096,121030.0,121020.0,0.32405241]
[1760037704175,0.20631795,121040.0,121020.0,0.32405241]
[1760037704396,0.37155292,121040.0,121020.0,0.32405241]
[1760037705910,0.00146,121030.0,121020.0,0.27608241]
[1760037711556,0.39939497,121040.0,121020.0,0.32438241]
[1760037712185,0.00146,121030.0,121020.0,0.27608241]
[1760037715907,0.70123755,121040.0,121020.0,0.27608241]
[1760037717453,0.46707755,121040.0,121020.0,0.27608241]
[1760037717709,0.23416,121030.0,121020.0,0.32438241]
[1760037717976,0.23416,121030.0,121020.0,0.27608241]
[1760037718212,0.23416,121030.0,121020.0,0.32438241]
[1760037719071,0.23416,121030.0,121020.0,0.27608241]
[1760037719283,0.23416,121030.0,121020.0,0.27362241]
[1760037719501,0.16526194,121020.0,121010.0,0.04163064]
[1760037719679,0.16526194,121020.0,121000.0,0.02354]
[1760037719680,0.4680155,121020.0,121000.0,0.1888292]
[1760037719885,0.4680155,121020.0,121000.0,0.2196692]
[1760037719886,0.16526194,121020.0,121000.0,0.2196692]
[1760037720085,0.23416,121010.0,121000.0,0.2679692]
[1760037720541,0.23416,121010.0,121000.0,0.33017949]
[1760037720750,0.51552589,121030.0,121010.0,0.16527495]
[1760037720978,0.25945589,121030.0,121010.0,0.23683495]
[1760037721210,0.90538945,121030.0,121010.0,0.23683495]
[1760037721435,0.23416,121020.0,121010.0,0.23683495]
[1760037721920,0.23416,121020.0,121010.0,0.26767495]
[1760037722568,0.81628945,121030.0,121010.0,0.26767495]
[1760037722753,0.23416,121020.0,121010.0,0.26767495]
[1760037722968,0.23734,121020.0,121010.0,0.26767495]
[1760037723167,0.23734,121020.0,121010.0,0.21937495]
[1760037723745,1.04421063,121020.0,121000.0,0.02354]
[1760037723955,1.04421063,121020.0,121000.0,5.047e-05]
[1760037723956,1.19589477,121010.0,121000.0,5.047e-05]
[1760037724159,1.12730121,121010.0,121000.0,5.047e-05]
[1760037724363,0.89632121,121010.0,121000.0,5.047e-05]
[1760037724632,1.13048121,121010.0,121000.0,5.047e-05]
[1760037724759,1.68019727,121010.0,121000.0,5.047e-05]
[1760037725997,1.68219727,121010.0,121000.0,5.047e-05]
[1760037726692,1.68219727,121010.0,121000.0,0.00194885]
[1760037727326,1.36804047,121010.0,121000.0,0.00194885]
[1760037727524,1.68812047,121010.0,121000.0,0.00194885]
[1760037728413,1.60220047,121010.0,121000.0,0.00194885]
[1760037728664,1.68812047,121010.0,121000.0,0.00194885]
[1760037729700,1.36804047,121010.0,121000.0,0.00194885]
[1760037729922,0.94046691,121010.0,121000.0,0.00194885]
[1760037730135,1.2552102,121010.0,121000.0,0.00194885]
[1760037730350,1.1692902,121010.0,121000.0,0.00194885]